fUSD/lending_fUSD_20250209
["ID","MTS","AMOUNT","RATE_DAILY","PERIOD"]
[352371491,1739065847477,-500.0,0.00010267,2]
[352371492,1739065847487,-500.0,0.00010267,2]
[352371493,1739065847498,-500.0,0.00010267,2]
[352371494,1739065847508,-500.0,0.00010267,2]
[352371495,1739065847518,-500.0,0.00010267,2]
[352371496,1739065847529,-501.07089367,0.00010267,2]
[352371497,1739065847538,-500.0,0.00010267,2]
[352371498,1739065847547,-500.0,0.00010267,2]
[352371499,1739065847556,-517.69,0.00010267,2]
[352371500,1739065847566,-501.87129535,0.00010267,2]
[352371501,1739065847574,-502.69020189,0.00010267,2]
[352371502,1739065847584,-500.0,0.00010267,2]
[352371503,1739065847593,-500.0,0.00010267,2]
[352371504,1739065847602,-500.0,0.00010267,2]
[352371505,1739065847611,-500.0,0.00010267,2]
[352371506,1739065847620,-554.93,0.00010267,2]
[352371507,1739065847629,-500.0,0.00010267,2]
[352371508,1739065847638,-999.77,0.00010267,2]
[352371509,1739065847647,-501.78524169,0.00010267,2]
[352371510,1739065847656,-313.51872455,0.00010267,2]
[352371511,1739065847666,-500.0,0.00010267,2]
[352371512,1739065847675,-500.0,0.00010267,2]
[352371513,1739065847685,-500.0,0.00010267,2]
[352371514,1739065847695,-500.0,0.00010267,2]
[352371515,1739065847704,-500.0,0.00010267,2]
[352371516,1739065847713,-500.0,0.00010267,2]
[352371517,1739065847724,-1083.06,0.00010267,2]
[352371518,1739065847734,-500.0,0.00010267,2]
[352371519,1739065847743,-500.0,0.00010267,2]
[352371520,1739065847752,-500.0,0.00010267,2]
[352371521,1739065847762,-500.0,0.00010267,2]
[352371522,1739065847771,-507.41775709,0.00010267,2]
[352371523,1739065847781,-500.0,0.00010267,2]
[352371524,1739065847790,-533.58,0.00010267,2]
[352371525,1739065847801,-899.57,0.00010267,2]
[352371526,1739065847811,-500.0,0.00010267,2]
[352371527,1739065847820,-500.0,0.00010267,2]
[352371528,1739065847830,-2827.44,0.00010267,2]
[352371529,1739065847840,-500.0,0.00010267,2]
[352371530,1739065847850,-500.0,0.00010267,2]
[352371531,1739065847859,-500.0,0.00010267,2]
[352371532,1739065847868,-500.0,0.00010267,2]
[352371533,1739065847877,-177.66302995,0.00010267,2]
[352371534,1739065847885,-814.38,0.00010267,2]
[352371535,1739065847894,-500.0,0.00010267,2]
[352371536,1739065847904,-503.8485674,0.00010267,2]
[352371537,1739065847913,-1161.87,0.00010267,2]
[352371538,1739065847923,-505.63851785,0.00010267,2]
[352371539,1739065847933,-500.0,0.00010267,2]
[352371540,1739065847943,-500.0,0.00010267,2]
[352371541,1739065847953,-1281.49,0.00010267,2]
[352371542,1739065847962,-503.04305936,0.00010267,2]
[352371543,1739065847972,-500.0,0.00010267,2]
[352371544,1739065847982,-1000.0,0.00010267,2]
[352371545,1739065847992,-500.0,0.00010267,2]
[352371546,1739065848002,-500.0,0.00010267,2]
[352371547,1739065848012,-1007.35,0.00010267,2]
[352371548,1739065848022,-500.0,0.00010267,2]
[352371549,1739065848033,-500.0,0.00010267,2]
[352371550,1739065848044,-500.0,0.00010267,2]
[352371551,1739065848055,-500.0,0.00010267,2]
[352371552,1739065848067,-500.0,0.00010267,2]
[352371553,1739065848078,-1979.78,0.00010267,2]
[352371554,1739065848091,-500.0,0.00010267,2]
[352371555,1739065848102,-500.0,0.00010267,2]
[352371556,1739065848113,-2191.6,0.00010267,2]
[352371557,1739065848124,-500.0,0.00010267,2]
[352371558,1739065848134,-500.0,0.00010267,2]
[352371559,1739065848144,-502.15878582,0.00010267,2]
[352371560,1739065848154,-500.0,0.00010267,2]
[352371561,1739065848165,-500.0,0.00010267,2]
[352371562,1739065848178,-500.0,0.00010267,2]
[352371563,1739065848189,-500.0,0.00010267,2]
[352371564,1739065848200,-500.0,0.00010267,2]
[352371565,1739065848210,-503.03147554,0.00010267,2]
[352371566,1739065848222,-502.9225238,0.00010269,2]
[352371567,1739065848232,-501.20683622,0.00010269,2]
[352371568,1739065848243,-512.98066892,0.00010269,2]
[352371569,1739065848254,-230.16036316,0.00010269,2]
[352371570,1739065848264,-501.60271732,0.00010269,2]
[352371571,1739065848274,-357.33713628,0.00010269,2]
[352371572,1739065848285,-500.0,0.00010269,2]
[352371573,1739065848296,-501.49428982,0.00010269,2]
[352371574,1739065848307,-469.95914144,0.00010269,2]
[352371575,1739065848318,-502.53413759,0.00010269,2]
[352371576,1739065848329,-151.0,0.00010271,2]
[352371577,1739065848341,-30000.0,0.00010271,2]
[352371578,1739065848351,-305.58301438,0.00010393,2]
[352371579,1739065848362,-500.0,0.00010402,2]
[352371580,1739065848372,-847.54,0.00010402,2]
[352371581,1739065848382,-500.0,0.00010402,2]
[352371582,1739065848392,-500.0,0.00010402,2]
[352371583,1739065848404,-646.65,0.00010403,2]
[352371584,1739065848415,-500.0,0.00010403,2]
[352371585,1739065848426,-500.0,0.00010403,2]
[352371586,1739065848436,-500.0,0.00010403,2]
[352371587,1739065848446,-500.0,0.00010403,2]
[352371588,1739065848457,-500.0,0.00010403,2]
[352371589,1739065848467,-777.99,0.00010403,2]
[352371590,1739065848477,-500.0,0.00010403,2]
[352371591,1739065848488,-580.08,0.00010403,2]
[352371592,1739065848498,-500.0,0.00010403,2]
[352371593,1739065848509,-500.0,0.00010403,2]
[352371594,1739065848520,-500.0,0.00010403,2]
[352371595,1739065848530,-500.0,0.00010403,2]
[352371596,1739065848540,-500.0,0.00010403,2]
[352371597,1739065848551,-668.51,0.00010403,2]
[352371598,1739065848562,-500.0,0.00010403,2]
[352371599,1739065848572,-500.0,0.00010403,2]
[352371600,1739065848582,-500.0,0.00010403,2]
[352371601,1739065848594,-500.0,0.00010403,2]
[352371602,1739065848605,-500.0,0.00010403,2]
[352371603,1739065848615,-500.0,0.00010403,2]
[352371604,1739065848625,-562.51,0.00010403,2]
[352371605,1739065848636,-730.87,0.00010403,2]
[352371606,1739065848646,-734.963011,0.00010403,2]
[352371607,1739065848657,-500.0,0.00010403,2]
[352371608,1739065848667,-311.79710515,0.00010403,2]
[352371609,1739065848677,-500.0,0.00010403,2]
[352371610,1739065848687,-778.15,0.00010403,2]
[352371611,1739065848698,-500.0,0.00010403,2]
[352371612,1739065848709,-828.926949,0.00010403,2]
[352371613,1739065848721,-500.0,0.00010403,2]
[352371614,1739065848732,-500.0,0.00010403,2]
[352371615,1739065848744,-500.0,0.00010403,2]
[352371616,1739065848755,-500.0,0.00010403,2]
[352371617,1739065848766,-500.0,0.00010403,2]
[352371618,1739065848777,-782.31,0.00010403,2]
[352371619,1739065848787,-500.0,0.00010403,2]
[352371620,1739065848798,-500.0,0.00010403,2]
[352371621,1739065848808,-762.04,0.00010403,2]
[352371622,1739065848819,-500.0,0.00010403,2]
[352371623,1739065848829,-500.0,0.00010403,2]
[352371624,1739065848840,-513.33,0.00010403,2]
[352371625,1739065848850,-500.0,0.00010403,2]
[352371626,1739065848860,-500.0,0.00010403,2]
[352371627,1739065848870,-783.32,0.00010403,2]
[352371628,1739065848880,-848.63,0.00010403,2]
[352371629,1739065848891,-500.0,0.00010403,2]
[352371630,1739065848900,-500.0,0.00010403,2]
[352371631,1739065848911,-503.57,0.00010403,2]
[352371632,1739065848922,-500.0,0.00010403,2]
[352371633,1739065848934,-500.0,0.00010403,2]
[352371634,1739065848945,-500.0,0.00010403,2]
[352371635,1739065848955,-500.0,0.00010403,2]
[352371636,1739065848968,-500.0,0.00010403,2]
[352371637,1739065848978,-500.0,0.00010403,2]
[352371638,1739065848988,-500.0,0.00010403,2]
[352371639,1739065848999,-535.45,0.00010403,2]
[352371640,1739065849010,-692.86,0.00010403,2]
[352371641,1739065849020,-505.36504745,0.00010403,2]
[352371642,1739065849031,-500.0,0.00010403,2]
[352371643,1739065849041,-500.0,0.00010403,2]
[352371644,1739065849050,-685.54,0.00010403,2]
[352371645,1739065849061,-322.62033881,0.00010403,2]
[352371646,1739065849070,-505.36901035,0.00010403,2]
[352371647,1739065849081,-214.06221482,0.00010403,2]
[352371648,1739065849093,-500.0,0.00010403,2]
[352371649,1739065849104,-500.0,0.00010403,2]
[352371650,1739065849115,-500.0,0.00010403,2]
[352371651,1739065849124,-546.45818121,0.00010403,2]
[352371652,1739065849134,-500.0,0.00010403,2]
[352371653,1739065849144,-672.36,0.00010403,2]
[352371654,1739065849153,-500.0,0.00010403,2]
[352371655,1739065849165,-500.0,0.00010403,2]
[352371656,1739065849175,-716.17,0.00010403,2]
[352371657,1739065849184,-500.0,0.00010403,2]
[352371658,1739065849194,-578.51644549,0.00010403,2]
[352371659,1739065849204,-542.07,0.00010403,2]
[352371660,1739065849213,-500.0,0.00010403,2]
[352371661,1739065849223,-500.0,0.00010403,2]
[352371662,1739065849235,-500.0,0.00010403,2]
[352371663,1739065849245,-500.0,0.00010403,2]
[352371664,1739065849255,-577.52170799,0.00010403,2]
[352371665,1739065849265,-1000.37,0.00010403,2]
[352371666,1739065849275,-500.0,0.00010403,2]
[352371667,1739065849285,-500.0,0.00010403,2]
[352371668,1739065849295,-500.0,0.00010403,2]
[352371669,1739065849304,-388.55460016,0.00010403,2]
[352371670,1739065849314,-500.0,0.00010403,2]
[352371671,1739065849324,-600.57,0.00010403,2]
[352371672,1739065849335,-500.0,0.00010403,2]
[352371673,1739065849344,-507.89779651,0.00010403,2]
[352371674,1739065849354,-500.0,0.00010403,2]
[352371675,1739065849363,-661.15,0.00010403,2]
[352371676,1739065849374,-500.0,0.00010403,2]
[352371677,1739065849384,-1452.54,0.00010403,2]
[352371678,1739065849395,-589.68447381,0.00010403,2]
[352371679,1739065849405,-500.0,0.00010403,2]
[352371680,1739065849415,-919.49,0.00010403,2]
[352371681,1739065849424,-1599.2,0.00010403,2]
[352371682,1739065849435,-500.0,0.00010403,2]
[352371683,1739065849444,-500.0,0.00010403,2]
[352371684,1739065849455,-500.0,0.00010403,2]
[352371685,1739065849465,-500.0,0.00010403,2]
[352371686,1739065849476,-1019.85,0.00010403,2]
[352371687,1739065849486,-1931.5,0.00010403,2]
[352371688,1739065849496,-836.62,0.00010403,2]
[352371689,1739065849507,-500.0,0.00010403,2]
[352371690,1739065849517,-253.35838641,0.00010403,2]
[352371691,1739065849526,-531.35117062,0.00010403,2]
[352371692,1739065849536,-500.0,0.00010403,2]
[352371693,1739065849546,-500.0,0.00010403,2]
[352371694,1739065849556,-1850.11,0.00010403,2]
[352371695,1739065849566,-500.0,0.00010403,2]
[352371696,1739065849576,-830.1,0.00010403,2]
[352371697,1739065849586,-837.23,0.00010403,2]
[352371698,1739065849596,-1605.72,0.00010403,2]
[352371699,1739065849606,-1476.07,0.00010403,2]
[352371700,1739065849616,-2142.18,0.00010403,2]
[352371701,1739065849626,-500.0,0.00010403,2]
[352371702,1739065849635,-500.0,0.00010403,2]
[352371703,1739065849645,-961.51,0.00010403,2]
[352371704,1739065849655,-500.0,0.00010403,2]
[352371705,1739065849665,-509.99376282,0.00010403,2]
[352371706,1739065849675,-500.0,0.00010403,2]
[352371707,1739065849685,-829.85,0.00010403,2]
[352371708,1739065849695,-1156.22,0.00010403,2]
[352371709,1739065849705,-629.87,0.00010403,2]
[352371710,1739065849715,-1910.75,0.00010403,2]
[352371711,1739065849726,-500.0,0.00010403,2]
[352371712,1739065849737,-500.0,0.00010403,2]
[352371713,1739065849748,-729.05,0.00010403,2]
[352371714,1739065849758,-500.0,0.00010403,2]
[352371715,1739065849768,-500.0,0.00010403,2]
[352371716,1739065849778,-1292.26,0.00010403,2]
[352371717,1739065849789,-1023.31,0.00010403,2]
[352371718,1739065849800,-554.03356134,0.00010403,2]
[352371719,1739065849817,-500.0,0.00010403,2]
[352371720,1739065849828,-504.34483454,0.00010403,2]
[352371721,1739065849837,-500.0,0.00010403,2]
[352371722,1739065849847,-500.0,0.00010403,2]
[352371723,1739065849856,-1324.77,0.00010403,2]
[352371724,1739065849866,-1235.9,0.00010403,2]
[352371725,1739065849876,-500.0,0.00010403,2]
[352371726,1739065849885,-574.84,0.00010403,2]
[352371727,1739065849895,-500.0,0.00010403,2]
[352371728,1739065849905,-500.0,0.00010403,2]
[352371729,1739065849915,-678.2,0.00010403,2]
[352371730,1739065849924,-1451.54,0.00010403,2]
[352371731,1739065849934,-851.41,0.00010403,2]
[352371732,1739065849945,-500.0,0.00010403,2]
[352371733,1739065849954,-500.0,0.00010403,2]
[352371734,1739065849964,-500.0,0.00010403,2]
[352371735,1739065849975,-500.0,0.00010403,2]
[352371736,1739065849984,-1660.93,0.00010403,2]
[352371737,1739065849994,-500.0,0.00010403,2]
[352371738,1739065850003,-2348.11,0.00010403,2]
[352371739,1739065850013,-500.0,0.00010403,2]
[352371740,1739065850023,-940.4,0.00010403,2]
[352371741,1739065850032,-500.0,0.00010403,2]
[352371742,1739065850042,-3337.18,0.00010403,2]
[352371743,1739065850051,-560.0060586,0.00010403,2]
[352371744,1739065850061,-2430.64,0.00010403,2]
[352371745,1739065850071,-500.0,0.00010403,2]
[352371746,1739065850081,-399.08541744,0.00010403,2]
[352371747,1739065850093,-500.0,0.00010403,2]
[352371748,1739065850103,-500.0,0.00010403,2]
[352371749,1739065850113,-1070.1,0.00010403,2]
[352371750,1739065850123,-2276.95,0.00010403,2]
[352371751,1739065850135,-672.03,0.00010403,2]
[352371752,1739065850145,-610.21031907,0.00010403,2]
[352371753,1739065850154,-312.43100532,0.00010403,2]
[352371754,1739065850164,-1406.86,0.00010403,2]
[352371755,1739065850174,-500.0,0.00010403,2]
[352371756,1739065850183,-960.92,0.00010403,2]
[352371757,1739065850193,-500.0,0.00010403,2]
[352371758,1739065850202,-505.20504921,0.00010403,2]
[352371759,1739065850212,-1197.83,0.00010403,2]
[352371760,1739065850222,-500.0,0.00010403,2]
[352371761,1739065850232,-908.43,0.00010403,2]
[352371762,1739065850242,-1585.45,0.00010403,2]
[352371763,1739065850252,-500.0,0.00010403,2]
[352371764,1739065850262,-669.33,0.00010403,2]
[352371765,1739065850271,-504.04,0.00010403,2]
[352371766,1739065850281,-500.0,0.00010403,2]
[352371767,1739065850290,-1615.81,0.00010403,2]
[352371768,1739065850300,-500.0,0.00010403,2]
[352371769,1739065850310,-500.0,0.00010403,2]
[352371770,1739065850320,-500.0,0.00010403,2]
[352371771,1739065850329,-500.0,0.00010403,2]
[352371772,1739065850339,-1554.99,0.00010403,2]
[352371773,1739065850348,-500.0,0.00010403,2]
[352371774,1739065850357,-904.99,0.00010403,2]
[352371775,1739065850367,-1316.45,0.00010403,2]
[352371776,1739065850377,-500.0,0.00010403,2]
[352371777,1739065850387,-500.0,0.00010403,2]
[352371778,1739065850397,-500.0,0.00010403,2]
[352371779,1739065850407,-773.68,0.00010403,2]
[352371780,1739065850416,-1321.5,0.00010403,2]
[352371781,1739065850426,-563.42,0.00010403,2]
[352371782,1739065850436,-504.78227299,0.00010403,2]
[352371783,1739065850446,-1652.3,0.00010403,2]
[352371784,1739065850455,-1176.32,0.00010403,2]
[352371785,1739065850465,-500.0,0.00010403,2]
[352371786,1739065850476,-500.0,0.00010403,2]
[352371787,1739065850485,-500.0,0.00010403,2]
[352371788,1739065850495,-2093.5,0.00010403,2]
[352371789,1739065850505,-2834.78,0.00010403,2]
[352371790,1739065850515,-500.0,0.00010403,2]
[352371791,1739065850528,-500.0,0.00010403,2]
[352371792,1739065850685,-1276.77,0.00010403,2]
[352371793,1739065850711,-500.0,0.00010403,2]
[352371794,1739065850723,-1561.18,0.00010403,2]
[352371795,1739065850732,-1124.08,0.00010403,2]
[352371796,1739065850741,-605.41,0.00010403,2]
[352371797,1739065850751,-500.0,0.00010403,2]
[352371798,1739065850760,-1196.21,0.00010403,2]
[352371799,1739065850770,-500.0,0.00010403,2]
[352371800,1739065850781,-500.0,0.00010403,2]
[352371801,1739065850791,-695.25,0.00010403,2]
[352371802,1739065850800,-518.29,0.00010403,2]
[352371803,1739065850811,-500.0,0.00010403,2]
[352371804,1739065850820,-500.0,0.00010403,2]
[352371805,1739065850831,-500.0,0.00010403,2]
[352371806,1739065850841,-1471.32,0.00010403,2]
[352371807,1739065850850,-1636.79,0.00010403,2]
[352371808,1739065850859,-500.0,0.00010403,2]
[352371809,1739065850869,-500.0,0.00010403,2]
[352371810,1739065850878,-500.0,0.00010403,2]
[352371811,1739065850888,-1949.4,0.00010403,2]
[352371812,1739065850898,-500.0,0.00010403,2]
[352371813,1739065850908,-627.54,0.00010403,2]
[352371814,1739065850917,-1887.98,0.00010403,2]
[352371815,1739065850928,-1518.61,0.00010403,2]
[352371816,1739065850938,-500.0,0.00010403,2]
[352371817,1739065850948,-816.06,0.00010403,2]
[352371818,1739065850958,-282.97696991,0.00010403,2]
[352371819,1739065850969,-618.65943981,0.00010403,2]
[352371820,1739065850979,-500.0,0.00010403,2]
[352371821,1739065850988,-500.0,0.00010403,2]
[352371822,1739065850998,-700.89,0.00010403,2]
[352371823,1739065851008,-262.54175113,0.00010403,2]
[352371824,1739065851018,-2133.9,0.00010403,2]
[352371825,1739065851029,-565.73,0.00010403,2]
[352371826,1739065851038,-500.0,0.00010403,2]
[352371827,1739065851047,-500.0,0.00010403,2]
[352371828,1739065851056,-500.0,0.00010403,2]
[352371829,1739065851066,-505.73095588,0.00010403,2]
[352371830,1739065851075,-500.0,0.00010403,2]
[352371831,1739065851085,-500.0,0.00010403,2]
[352371832,1739065851097,-2090.87,0.00010403,2]
[352371833,1739065851107,-1114.73,0.00010403,2]
[352371834,1739065851116,-2216.88,0.00010403,2]
[352371835,1739065851125,-500.0,0.00010403,2]
[352371836,1739065851136,-500.0,0.00010403,2]
[352371837,1739065851145,-500.0,0.00010403,2]
[352371838,1739065851154,-500.0,0.00010403,2]
[352371839,1739065851164,-1425.9,0.00010403,2]
[352371840,1739065851175,-500.0,0.00010403,2]
[352371841,1739065851184,-4849.59,0.00010403,2]
[352371842,1739065851194,-500.0,0.00010403,2]
[352371843,1739065851203,-2088.29,0.00010403,2]
[352371844,1739065851212,-864.75,0.00010403,2]
[352371845,1739065851223,-500.0,0.00010403,2]
[352371846,1739065851232,-631.13,0.00010403,2]
[352371847,1739065851241,-399.42896717,0.00010403,2]
[352371848,1739065851250,-500.0,0.00010403,2]
[352371849,1739065851260,-3006.06,0.00010403,2]
[352371850,1739065851269,-500.0,0.00010403,2]
[352371851,1739065851280,-1354.44,0.00010403,2]
[352371852,1739065851291,-500.0,0.00010403,2]
[352371853,1739065851300,-514.1562448,0.00010404,2]
[352371854,1739065851309,-566.32038901,0.00010404,2]
[352371855,1739065851319,-513.67693712,0.00010404,2]
[352371856,1739065851329,-518.23716029,0.00010404,2]
[352371857,1739065851338,-504.78557646,0.00010404,2]
[352371858,1739065851348,-500.0,0.00010404,2]
[352371859,1739065851358,-500.0,0.00010404,2]
[352371860,1739065851367,-500.0,0.00010404,2]
[352371861,1739065851377,-606.44043969,0.00010404,2]
[352371862,1739065851386,-517.66695787,0.00010404,2]
[352371863,1739065851396,-513.91250934,0.00010404,2]
[352371864,1739065851404,-470.36422154,0.00010404,2]
[352371865,1739065851413,-511.644426,0.00010404,2]
[352371866,1739065851422,-510.25207234,0.00010404,2]
[352371867,1739065851431,-512.24928123,0.00010404,2]
[352371868,1739065851440,-183.2759271,0.00010404,2]
[352371869,1739065851449,-508.66815519,0.00010404,2]
[352371870,1739065851458,-500.0,0.00010404,2]
[352371871,1739065851467,-500.0,0.00010404,2]
[352371872,1739065851477,-514.44697408,0.00010404,2]
[352371873,1739065851485,-500.0,0.00010404,2]
[352371874,1739065851494,-508.82383427,0.00010404,2]
[352371875,1739065851503,-511.21034888,0.00010404,2]
[352371876,1739065851512,-500.0,0.00010404,2]
[352371877,1739065851521,-500.0,0.00010404,2]
[352371878,1739065851530,-506.30484304,0.00010404,2]
[352371879,1739065851539,-500.0,0.00010404,2]
[352371880,1739065851548,-500.0,0.00010404,2]
[352371881,1739065851557,-611.03037236,0.00010404,2]
[352371882,1739065851566,-500.0,0.00010404,2]
[352371883,1739065851576,-153.27842415,0.00010404,2]
[352371884,1739065851585,-507.15064593,0.00010404,2]
[352371885,1739065851595,-500.0,0.00010404,2]
[352371886,1739065851604,-500.0,0.00010404,2]
[352371887,1739065851615,-500.0,0.00010404,2]
[352371888,1739065851625,-509.99600439,0.00010404,2]
[352371889,1739065851634,-506.63626822,0.00010404,2]
[352371890,1739065851644,-504.90674557,0.00010404,2]
[352371891,1739065851653,-500.0,0.00010404,2]
[352371892,1739065851662,-500.0,0.00010404,2]
[352371893,1739065851671,-500.0,0.00010404,2]
[352371894,1739065851681,-500.0,0.00010404,2]
[352371895,1739065851690,-506.13,0.00010404,2]
[352371896,1739065851699,-500.0,0.00010404,2]
[352371897,1739065851709,-500.0,0.00010404,2]
[352371898,1739065851719,-500.0,0.00010404,2]
[352371899,1739065851729,-500.0,0.00010404,2]
[352371900,1739065851738,-599.19272731,0.00010404,2]
[352371901,1739065851747,-504.43954247,0.00010404,2]
[352371902,1739065851758,-505.67316971,0.00010404,2]
[352371903,1739065851767,-500.0,0.00010404,2]
[352371904,1739065851776,-500.0,0.00010404,2]
[352371905,1739065851786,-500.0,0.00010404,2]
[352371906,1739065851795,-500.0,0.00010404,2]
[352371907,1739065851803,-500.0,0.00010404,2]
[352371908,1739065851812,-500.0,0.00010404,2]
[352371909,1739065851822,-509.71988622,0.00010404,2]
[352371910,1739065851831,-500.0,0.00010404,2]
[352371911,1739065851841,-507.15473106,0.00010404,2]
[352371912,1739065851850,-500.0,0.00010404,2]
[352371913,1739065851859,-500.0,0.00010404,2]
[352371914,1739065851868,-500.0,0.00010404,2]
[352371915,1739065851877,-500.0,0.00010404,2]
[352371916,1739065851886,-500.0,0.00010404,2]
[352371917,1739065851895,-500.0,0.00010404,2]
[352371918,1739065851904,-500.0,0.00010404,2]
[352371919,1739065851913,-500.0,0.00010404,2]
[352371920,1739065851923,-613.38519641,0.00010404,2]
[352371921,1739065851931,-500.0,0.00010404,2]
[352371922,1739065851942,-500.0,0.00010404,2]
[352371923,1739065851951,-500.0,0.00010404,2]
[352371924,1739065851960,-500.0,0.00010404,2]
[352371925,1739065851970,-500.0,0.00010404,2]
[352371926,1739065851979,-500.0,0.00010404,2]
[352371927,1739065851988,-500.0,0.00010404,2]
[352371928,1739065851997,-500.0,0.00010404,2]
[352371929,1739065852006,-500.0,0.00010404,2]
[352371930,1739065852015,-500.0,0.00010404,2]
[352371931,1739065852025,-627.26888919,0.00010404,2]
[352371932,1739065852035,-500.0,0.00010404,2]
[352371933,1739065852044,-500.0,0.00010404,2]
[352371934,1739065852054,-500.0,0.00010404,2]
[352371935,1739065852063,-500.0,0.00010404,2]
[352371936,1739065852074,-500.0,0.00010404,2]
[352371937,1739065852084,-500.0,0.00010404,2]
[352371938,1739065852098,-500.0,0.00010404,2]
[352371939,1739065852107,-501.554965,0.00010404,2]
[352371940,1739065852116,-500.0,0.00010404,2]
[352371941,1739065852126,-500.0,0.00010404,2]
[352371942,1739065852135,-500.0,0.00010404,2]
[352371943,1739065852144,-500.0,0.00010404,2]
[352371944,1739065852153,-500.0,0.00010404,2]
[352371945,1739065852164,-500.0,0.00010404,2]
[352371946,1739065852175,-500.0,0.00010404,2]
[352371947,1739065852186,-500.0,0.00010404,2]
[352371948,1739065852195,-500.0,0.00010404,2]
[352371949,1739065852204,-500.0,0.00010404,2]
[352371950,1739065852214,-500.0,0.00010404,2]
[352371951,1739065852224,-504.14443193,0.00010404,2]
[352371952,1739065852233,-500.0,0.00010404,2]
[352371953,1739065852243,-500.0,0.00010404,2]
[352371954,1739065852252,-436.27372422,0.00010404,2]
[352371955,1739065852261,-500.0,0.00010404,2]
[352371956,1739065852271,-500.0,0.00010404,2]
[352371957,1739065852280,-500.0,0.00010404,2]
[352371958,1739065852291,-500.0,0.00010404,2]
[352371959,1739065852300,-500.0,0.00010404,2]
[352371960,1739065852312,-527.45956452,0.00010404,2]
[352371961,1739065852321,-500.0,0.00010404,2]
[352371962,1739065852330,-500.0,0.00010404,2]
[352371963,1739065852339,-504.29018618,0.00010404,2]
[352371964,1739065852349,-500.0,0.00010404,2]
[352371965,1739065852359,-500.0,0.00010404,2]
[352371966,1739065852368,-500.0,0.00010404,2]
[352371967,1739065852377,-500.0,0.00010404,2]
[352371968,1739065852387,-500.0,0.00010404,2]
[352371969,1739065852395,-500.0,0.00010404,2]
[352371970,1739065852405,-504.72101956,0.00010404,2]
[352371971,1739065852414,-500.0,0.00010404,2]
[352371972,1739065852423,-500.0,0.00010404,2]
[352371973,1739065852432,-500.0,0.00010404,2]
[352371974,1739065852441,-500.0,0.00010404,2]
[352371975,1739065852451,-500.0,0.00010404,2]
[352371976,1739065852460,-500.0,0.00010404,2]
[352371977,1739065852470,-500.0,0.00010404,2]
[352371978,1739065852479,-500.0,0.00010404,2]
[352371979,1739065852488,-500.0,0.00010404,2]
[352371980,1739065852497,-500.0,0.00010404,2]
[352371981,1739065852506,-500.0,0.00010404,2]
[352371982,1739065852515,-500.0,0.00010404,2]
[352371983,1739065852523,-500.0,0.00010404,2]
[352371984,1739065852533,-505.29869288,0.00010404,2]
[352371985,1739065852542,-500.0,0.00010404,2]
[352371986,1739065852551,-500.0,0.00010404,2]
[352371987,1739065852560,-500.0,0.00010404,2]
[352371988,1739065852569,-500.0,0.00010404,2]
[352371989,1739065852578,-500.0,0.00010404,2]
[352371990,1739065852587,-500.0,0.00010404,2]